bitfinex/quotes_ETHUSD_20230113
["timestamp","ask_amount","ask_price","bid_price","bid_amount"]
[1673653411985,0.0879937,1450.0,1449.9,27.58272649]
[1673653412286,0.0879937,1450.0,1449.9,28.74439251]
[1673653412498,0.0879937,1450.0,1449.9,33.86700478]
[1673653412887,0.0879937,1450.0,1449.9,33.22323603]
[1673653413403,0.0879937,1450.0,1449.9,32.19419244]
[1673653413613,0.0879937,1450.0,1449.9,33.22322618]
[1673653413952,0.0879937,1450.0,1449.9,32.19419244]
[1673653414150,0.0879937,1450.0,1449.9,33.22295575]
[1673653415299,3.7e-06,1450.0,1449.9,32.19419244]
[1673653415509,0.09660334,1450.3,1450.0,2.0]
[1673653415701,0.09660334,1450.3,1450.2,1.424]
[1673653415939,0.09660334,1450.3,1450.2,25.1108]
[1673653417822,0.09660334,1450.3,1450.2,32.51413593]
[1673653418558,0.09660334,1450.3,1450.2,49.75073593]
[1673653418787,0.10303121,1450.4,1450.2,49.75073593]
[1673653418964,0.10303121,1450.4,1450.3,12.26431116]
[1673653419173,0.10303121,1450.4,1450.3,35.94967116]
[1673653419542,1.21e-06,1450.4,1450.3,35.94967116]
[1673653419698,1.21e-06,1450.4,1450.3,44.20857116]
[1673653419909,1.21e-06,1450.4,1450.3,37.31345116]
[1673653420169,1.21e-06,1450.4,1450.3,30.41833116]
[1673653420329,3.4338313,1450.4,1450.3,10.40282546]
[1673653420539,3.4338313,1450.4,1450.3,17.29794546]
[1673653420795,1.21e-06,1450.4,1450.3,24.19306546]
[1673653422036,1.21e-06,1450.4,1450.3,31.08818546]
[1673653422347,1.21e-06,1450.4,1450.3,24.19306546]
[1673653422556,1.21e-06,1450.4,1450.3,17.29794546]
[1673653423199,1.21e-06,1450.4,1450.3,14.29794546]
[1673653423519,1.21e-06,1450.4,1450.3,20.16685759]
[1673653423898,1.21e-06,1450.4,1450.3,13.27173759]
[1673653424158,1.21e-06,1450.4,1450.3,6.37661759]
[1673653424159,3.4338313,1450.4,1450.3,6.37661759]
[1673653424551,3.78742509,1450.4,1450.3,6.37661759]
[1673653424974,3.78742509,1450.4,1450.3,13.27173759]
[1673653425162,3.78742509,1450.4,1450.3,20.16685759]
[1673653425373,3.78742509,1450.4,1450.3,27.06197759]
[1673653425581,1.21e-06,1450.4,1450.3,27.06197759]
[1673653425849,1.21e-06,1450.4,1450.3,20.16685759]
[1673653426426,1.21e-06,1450.4,1450.3,27.06197759]
[1673653426634,1.21e-06,1450.4,1450.3,20.16685759]
[1673653428018,1.21e-06,1450.4,1450.3,27.06197759]
[1673653428839,0.33931491,1450.4,1450.3,27.06197759]
[1673653429211,0.33931491,1450.4,1450.3,20.16685759]
[1673653429526,0.33931491,1450.4,1450.3,13.27173759]
[1673653429888,0.33931491,1450.4,1450.3,20.16685759]
[1673653430312,0.33931491,1450.4,1450.3,27.06197759]
[1673653432002,0.33931491,1450.4,1450.3,6.37661759]
[1673653432452,0.33931491,1450.4,1450.3,13.27173759]
[1673653432644,0.33931491,1450.4,1450.3,6.37661759]
[1673653432864,0.33931491,1450.4,1450.3,27.06197759]
[1673653435488,1.40831491,1450.4,1450.3,6.37661759]
[1673653435683,1.55935706,1450.4,1450.3,6.37661759]
[1673653435894,0.49035706,1450.4,1450.3,6.37661759]
[1673653436104,0.33931491,1450.4,1450.3,6.37661759]
[1673653437166,1.40831491,1450.4,1450.3,6.37661759]
[1673653437594,0.33931491,1450.4,1450.3,6.37661759]
[1673653437804,4.842145,1450.4,1450.3,6.37661759]
[1673653438377,0.33931491,1450.4,1450.3,27.06197759]
[1673653438686,0.33931491,1450.4,1450.3,6.37661759]
[1673653440792,0.33931491,1450.4,1450.3,13.27173759]
[1673653441017,0.58345706,1450.4,1450.3,13.27173759]
[1673653441852,0.33931491,1450.4,1450.3,13.27173759]
[1673653442032,0.33931491,1450.4,1450.3,27.06197759]
[1673653442432,0.33931491,1450.4,1450.3,20.16685759]
[1673653442790,0.33931491,1450.4,1450.3,27.06197759]
[1673653445152,0.33592409,1450.4,1450.3,27.06197759]
[1673653445413,0.33592409,1450.4,1450.3,28.09068212]
[1673653446552,0.33592409,1450.4,1450.3,32.27168194]
[1673653446761,0.33592409,1450.4,1450.3,35.27168194]
[1673653446977,0.33592409,1450.4,1450.3,36.3036533]
[1673653447471,0.33592409,1450.4,1450.3,36.40568194]
[1673653447996,0.33592409,1450.4,1450.3,37.43764338]
[1673653448417,0.33592409,1450.4,1450.3,36.40568194]
[1673653448622,0.33592409,1450.4,1450.3,38.47176695]
[1673653448884,0.33592409,1450.4,1450.3,36.40568194]
[1673653450209,0.33592409,1450.4,1450.3,38.47176695]
[1673653450404,0.33592409,1450.4,1450.3,15.61863685]
[1673653450621,0.33592409,1450.4,1450.3,25.74907812]
[1673653450826,0.33592409,1450.4,1450.3,32.64419812]
[1673653452831,0.33592409,1450.4,1450.3,24.19951436]
[1673653453202,0.33592409,1450.4,1450.3,16.27173759]
[1673653453980,0.33592409,1450.4,1450.3,9.89512]
[1673653455252,0.57972716,1450.4,1450.3,6.89512]
[1673653455569,0.57972716,1450.4,1450.3,6.85893557]
[1673653456398,0.33592409,1450.4,1450.3,6.85893557]
[1673653458459,0.33592409,1450.4,1450.2,16.43868053]
[1673653458675,0.33592409,1450.4,1450.2,16.37268053]
[1673653459190,0.33592409,1450.4,1450.3,1.03265677]
[1673653459534,0.33592409,1450.4,1450.3,14.82289677]
[1673653460312,0.33592409,1450.4,1450.3,14.62729326]
[1673653460530,0.33592409,1450.4,1450.3,21.52241326]
[1673653460950,0.33592409,1450.4,1450.3,14.62729326]
[1673653461174,0.33592409,1450.4,1450.3,7.73217326]
[1673653461584,0.33592409,1450.4,1450.3,6.89512]
[1673653461775,0.33592409,1450.4,1450.2,15.40599376]
[1673653462133,0.33592409,1450.4,1450.2,15.33999376]
[1673653462292,0.33592409,1450.4,1450.2,13.79043]
[1673653462857,0.33592409,1450.4,1450.1,4.61556376]
[1673653462858,3.43383009,1450.3,1450.1,4.61556376]
[1673653463045,3.43383009,1450.3,1450.0,27.05483127]
[1673653463046,3.43383009,1450.2,1450.0,1.61556376]
[1673653463399,3.43383009,1450.2,1449.9,13.52878501]
[1673653463400,24.12109009,1450.2,1449.9,12.14434877]
[1673653463605,2.41210901,1450.1,1449.9,12.07834877]
[1673653464126,2.41210901,1450.1,1450.0,1.54956376]
[1673653464363,3.52289919,1450.2,1449.9,10.57859877]
[1673653464516,3.52289919,1450.2,1450.0,3.0]
[1673653464517,3.43383009,1450.2,1450.0,3.0]
[1673653465558,3.43383009,1450.2,1450.0,16.79294]
[1673653465984,3.43383009,1450.2,1450.0,9.89639]
[1673653466180,3.89902001,1450.2,1450.0,11.44595376]
[1673653466654,3.89902001,1450.2,1450.0,9.89639]
[1673653466858,3.89902001,1450.2,1450.0,3.0]
[1673653468213,10.79470001,1450.2,1450.0,3.0]
[1673653468395,3.43383009,1450.1,1450.0,3.0]
[1673653468753,4.52388589,1450.1,1449.9,4.61556376]
[1673653468962,4.52388589,1450.1,1449.9,4.54956376]
[1673653469754,3.43383009,1450.1,1449.9,11.44641376]
[1673653470012,0.0890691,1450.2,1450.1,13.79214]
[1673653470237,9.29389319,1450.4,1450.1,20.68821]
[1673653470535,0.92048241,1450.3,1450.1,13.79214]
[1673653470701,0.92048241,1450.3,1450.1,6.89607]
[1673653470907,12.72772328,1450.4,1450.1,6.89607]
[1673653471376,12.72772328,1450.4,1450.1,14.82404893]
[1673653471539,11.58872328,1450.4,1450.1,21.72011893]
[1673653471748,15.12396658,1450.4,1450.1,20.68821]
[1673653472737,11.58872328,1450.4,1450.1,20.68821]
[1673653472952,11.58872328,1450.4,1450.1,21.72011893]
[1673653475475,11.58872328,1450.4,1450.1,23.26968269]
[1673653477642,11.58872328,1450.4,1450.3,6.89512]
[1673653477993,3.85882328,1450.4,1450.2,21.78422893]
[1673653478205,3.85882328,1450.4,1450.1,7.99372893]
[1673653478206,4.16752606,1450.4,1450.1,7.99372893]
[1673653478442,4.16752606,1450.4,1450.1,1.03190893]
[1673653478730,6.16752606,1450.4,1450.1,17.82404893]
[1673653478943,6.25659516,1450.4,1450.1,17.82404893]
[1673653479315,6.25659516,1450.4,1450.1,10.92797893]
[1673653479553,0.62565952,1450.3,1450.1,10.92797893]
[1673653479763,0.62565952,1450.3,1450.1,17.82404893]
[1673653480307,0.62565952,1450.3,1450.1,10.92797893]
[1673653482940,4.25659516,1450.4,1450.1,10.92797893]
[1673653483098,4.16752606,1450.4,1450.1,10.92797893]
[1673653483971,4.16752606,1450.4,1450.1,17.82404893]
[1673653484186,4.16752606,1450.4,1450.1,26.26968269]
[1673653484356,4.1650728,1450.4,1450.1,26.26968269]
[1673653484931,4.1650728,1450.4,1450.2,1.03190893]
[1673653485144,4.1650728,1450.4,1450.2,7.92740893]
[1673653485453,4.1650728,1450.4,1450.2,7.92749893]
[1673653486369,4.1650728,1450.4,1450.2,6.89559]
[1673653486771,4.1650728,1450.4,1450.2,7.92749893]
[1673653486985,3.76730092,1450.4,1450.2,7.92749893]
[1673653487302,3.76730092,1450.4,1450.2,14.82309893]
[1673653487837,3.76730092,1450.4,1450.2,13.79119]
[1673653488811,3.76730092,1450.4,1450.2,14.82309893]
[1673653489131,3.76730092,1450.4,1450.2,21.71869893]
[1673653489338,3.76730092,1450.4,1450.2,21.71538375]
[1673653490134,0.33347083,1450.4,1450.2,25.0380425]
[1673653490501,0.33347083,1450.4,1450.3,1.03190893]
[1673653490656,0.33347083,1450.4,1450.3,21.71726893]
[1673653491571,0.33347083,1450.4,1450.3,20.68536]
[1673653492859,0.33347083,1450.4,1450.3,21.71726893]
[1673653495914,0.37156811,1450.4,1450.3,21.71726893]
[1673653497028,0.37156811,1450.4,1450.3,14.82214893]
[1673653497169,0.37156811,1450.4,1450.3,13.79024]
[1673653497379,0.27156811,1450.4,1450.3,13.79024]
[1673653498136,0.27156811,1450.4,1450.3,6.89512]
[1673653498555,0.27156811,1450.4,1450.2,17.95237445]
[1673653498800,3.7053982,1450.4,1450.2,9.44127069]
[1673653499006,3.7053982,1450.4,1450.2,0.00766176]
[1673653500115,5.08748057,1450.4,1450.2,0.00766176]
[1673653500326,5.17654967,1450.4,1450.2,0.00766176]
[1673653500785,5.17654967,1450.4,1450.2,6.90322176]
[1673653502799,3.7944673,1450.4,1450.2,6.90322176]
[1673653503106,3.7053982,1450.4,1450.2,6.90322176]
[1673653503423,3.7053982,1450.4,1450.2,7.93513069]
[1673653505350,3.7053982,1450.4,1450.2,16.38029445]
[1673653506550,0.27156811,1450.4,1450.3,2.58147269]
[1673653506809,0.27156811,1450.4,1450.3,21.71726893]
[1673653508977,0.27156811,1450.4,1450.3,21.76726893]
[1673653509196,0.27156811,1450.4,1450.3,21.71501676]
[1673653510066,0.27156811,1450.4,1450.3,23.26458052]
[1673653510285,0.27156811,1450.4,1450.3,21.71501676]
[1673653510651,0.27156811,1450.4,1450.3,23.26458052]
[1673653512912,0.27156811,1450.4,1450.3,26.28034032]
[1673653513073,8.11e-06,1450.4,1450.3,31.44238282]
[1673653513276,0.10573509,1450.6,1450.4,2.0]
[1673653513519,0.10573509,1450.6,1450.5,30.15853718]
[1673653513749,0.10573509,1450.6,1450.5,32.12578484]
[1673653513963,0.10573509,1450.6,1450.5,35.80317049]
[1673653514275,0.10573509,1450.6,1450.5,36.84458454]
[1673653514859,0.10573509,1450.6,1450.5,37.97858454]
[1673653515072,0.10573509,1450.6,1450.5,39.0120338]
[1673653515279,0.10573509,1450.6,1450.5,36.94656068]
[1673653515490,0.10573509,1450.6,1450.5,39.0120338]
[1673653515738,0.10573509,1450.6,1450.5,36.94656068]
[1673653516542,0.10573509,1450.6,1450.5,37.9778057]
[1673653516958,0.13948569,1450.6,1450.5,37.9778057]
[1673653517424,0.13948569,1450.6,1450.5,36.94656068]
[1673653517955,0.13948569,1450.6,1450.5,37.97736552]
[1673653518348,0.13948569,1450.6,1450.5,36.42826068]
[1673653518753,0.13948569,1450.6,1450.5,29.53409068]
[1673653519601,0.13948569,1450.6,1450.5,31.08319552]
[1673653520263,0.13948569,1450.6,1450.5,29.53409068]
[1673653521528,0.13948569,1450.6,1450.5,30.05239068]
[1673653522590,0.13948569,1450.6,1450.5,31.08250649]
[1673653522812,0.10573509,1450.6,1450.5,31.08250649]
[1673653523170,0.10573509,1450.6,1450.5,30.05239068]
[1673653523911,0.10573509,1450.6,1450.5,31.08220048]
[1673653524374,0.10573509,1450.6,1450.5,31.08220797]
[1673653525166,0.10573509,1450.6,1450.5,33.48622077]
[1673653525445,5.09e-06,1450.6,1450.5,36.69069389]
[1673653525583,0.10930705,1450.8,1450.6,2.0]
[1673653525796,0.10930705,1450.8,1450.7,2.408]
[1673653526010,0.10930705,1450.8,1450.7,29.98492838]
[1673653526217,0.10930705,1450.8,1450.7,32.98492838]
[1673653526461,0.10930705,1450.8,1450.7,41.37702838]
[1673653531660,0.10930705,1450.8,1450.7,40.23802838]
[1673653532988,0.8135207,1450.8,1450.7,40.06792738]
[1673653533346,0.8135207,1450.8,1450.7,31.67582738]
[1673653535997,0.85050679,1450.8,1450.7,31.67582738]
[1673653536368,0.85050679,1450.8,1450.7,30.60682738]
[1673653536582,0.85050679,1450.8,1450.7,16.79048838]
[1673653536804,0.85050679,1450.8,1450.7,23.68370838]
[1673653538410,0.85050679,1450.8,1450.7,23.67966]
[1673653539305,0.84830675,1450.8,1450.7,23.67966]
[1673653540781,0.84830675,1450.8,1450.7,27.55722773]
[1673653542607,0.84830675,1450.8,1450.7,23.67966]
[1673653543403,0.84830675,1450.8,1450.7,16.78644]
[1673653544512,0.84830675,1450.8,1450.7,23.67966]
[1673653546921,0.84830675,1450.8,1450.7,16.78644]
[1673653547332,0.84830675,1450.8,1450.7,23.67966]
[1673653547927,0.84830675,1450.8,1450.7,16.78644]
[1673653549944,0.84830675,1450.8,1450.7,23.67966]
[1673653550973,4.36810132,1450.8,1450.7,9.89322]
[1673653551288,0.95994188,1450.6,1450.5,7.92365865]
[1673653551970,0.95994188,1450.6,1450.5,6.89391]
[1673653552128,0.95994188,1450.6,1450.5,8.43853297]
[1673653552574,0.95994188,1450.6,1450.5,11.43853297]
[1673653552813,1.03177527,1450.6,1450.5,18.33270297]
[1673653553119,1.03177527,1450.6,1450.5,25.22687297]
[1673653553332,1.03177527,1450.6,1450.5,12.47107815]
[1673653553489,1.03177527,1450.6,1450.5,19.36524815]
[1673653553700,1.1349528,1450.6,1450.5,5.57716815]
[1673653554150,1.1349528,1450.6,1450.5,19.36550815]
[1673653554371,1.1349528,1450.6,1450.5,26.25967815]
[1673653556242,1.1349528,1450.6,1450.5,24.71505518]
[1673653556866,0.17501092,1450.6,1450.5,24.71505518]
[1673653557127,0.07183339,1450.6,1450.5,24.71505518]
[1673653557319,0.07183339,1450.6,1450.5,17.74328518]
[1673653558004,15.93911553,1450.8,1450.5,17.74328518]
[1673653558240,3.43383009,1450.7,1450.5,17.74328518]
[1673653558781,0.07183339,1450.6,1450.5,17.74328518]
[1673653559007,0.07183339,1450.6,1450.4,1.09854518]
[1673653559008,4.92522983,1450.6,1450.4,1.09854518]
[1673653559254,3.43383009,1450.5,1450.4,1.03254518]
[1673653559849,3.50548871,1450.5,1450.4,1.03254518]
[1673653560178,3.50548871,1450.5,1450.4,14.82182518]
[1673653560402,4.15148002,1450.5,1450.4,21.71646518]
[1673653560599,4.15148002,1450.5,1450.4,14.82182518]
[1673653563598,4.15148002,1450.5,1450.4,24.17517983]
[1673653563968,4.15148002,1450.5,1450.4,21.71646518]
[1673653569853,4.15148002,1450.5,1450.4,14.82182518]
[1673653570490,4.15148002,1450.5,1450.3,0.066]
[1673653570491,5.58048002,1450.5,1450.3,0.066]
[1673653570682,5.58048002,1450.5,1450.2,3.49125983]
[1673653570683,5.84897809,1450.4,1450.2,3.49125983]
[1673653570922,5.93804719,1450.4,1450.2,3.49125983]
[1673653571322,3.43383009,1450.3,1450.2,2.45871465]
[1673653571535,4.17033481,1450.3,1450.2,2.45871465]
[1673653571978,11.13562001,1450.3,1450.2,2.45871465]
[1673653572141,11.22468911,1450.3,1450.2,2.45871465]
[1673653572792,4.32956911,1450.3,1450.2,2.45871465]
[1673653572982,4.24050001,1450.3,1450.2,2.45871465]
[1673653575439,11.13562001,1450.3,1450.2,2.45871465]
[1673653575751,11.22468911,1450.3,1450.2,2.45871465]
[1673653575930,4.84228935,1450.3,1450.2,2.45871465]
[1673653576142,11.64834025,1450.3,1450.2,2.45871465]
[1673653576346,18.63252935,1450.3,1450.2,2.45871465]
[1673653576569,11.73740935,1450.3,1450.2,2.45871465]
[1673653576772,1.40845926,1450.3,1450.2,2.45871465]
[1673653576984,1.40845926,1450.3,1450.2,23.14551465]
[1673653576985,0.58288544,1450.3,1450.2,23.14551465]
[1673653577195,0.58288544,1450.3,1450.2,9.35431465]
[1673653577382,0.58288544,1450.3,1450.2,2.45871465]
[1673653577627,0.58288544,1450.3,1450.2,9.35431465]
[1673653577963,0.82538878,1450.3,1450.2,2.45871465]
[1673653578883,0.82538878,1450.3,1450.2,9.35431465]
[1673653579535,4.25921887,1450.3,1450.2,2.45871465]
[1673653580430,4.25921887,1450.3,1450.2,9.35431465]
[1673653580676,4.25921887,1450.3,1450.2,16.24991465]
[1673653581090,4.25921887,1450.3,1450.2,23.14551465]
[1673653582579,4.25921887,1450.3,1450.2,23.09551465]
[1673653584256,4.25921887,1450.3,1450.2,16.19991465]
[1673653584955,4.25921887,1450.3,1450.2,23.09551465]
[1673653585439,4.25921887,1450.3,1450.2,16.19991465]
[1673653585618,4.01671553,1450.3,1450.2,16.19991465]
[1673653585794,4.01671553,1450.3,1450.2,23.09551465]
[1673653586155,4.01671553,1450.3,1450.2,16.19991465]
[1673653586350,4.01671553,1450.3,1450.2,9.30431465]
[1673653586680,4.01671553,1450.3,1450.2,23.09551465]
[1673653586901,4.01671553,1450.3,1450.2,16.19991465]
[1673653587056,12.93562879,1450.3,1450.2,2.40871465]
[1673653587375,19.91981789,1450.3,1450.2,2.40871465]
[1673653587796,26.39801029,1450.3,1450.2,2.40871465]
[1673653588362,33.52313029,1450.3,1450.2,0.58403632]
[1673653588530,34.94513029,1450.3,1450.2,0.58403632]
[1673653588991,28.05001029,1450.3,1450.2,0.58403632]
[1673653589193,34.94513029,1450.3,1450.2,0.58403632]
[1673653590116,12.39023303,1450.2,1449.9,0.08396031]
[1673653590325,4.86083009,1450.1,1449.9,6.98090031]
[1673653590574,3.43383009,1450.0,1449.9,21.80748549]
[1673653590758,3.9156787,1450.3,1449.9,21.80748549]
[1673653590759,3.52289919,1450.1,1449.9,21.80748549]
[1673653590972,0.06915834,1450.1,1449.9,21.80748549]
[1673653591166,0.06915834,1450.1,1449.9,25.34557165]
[1673653592729,0.06915834,1450.1,1449.9,14.91046549]
[1673653593290,3.50298843,1450.1,1449.9,8.01344549]
[1673653593498,3.50298843,1450.1,1449.9,14.91046549]
[1673653598061,3.50298843,1450.1,1449.9,8.01344549]
[1673653598459,3.50298843,1450.1,1449.9,1.11650549]
[1673653598672,0.35029884,1450.0,1449.9,14.91031549]
[1673653599214,0.35029884,1450.0,1449.9,8.01329549]
[1673653599410,3.50298843,1450.1,1449.9,8.01329549]
[1673653599794,0.06841127,1450.0,1449.9,8.01329549]
[1673653603472,3.50224136,1450.0,1449.9,8.01352549]
[1673653603676,3.50224136,1450.0,1449.9,1.11650549]
[1673653603890,3.50224136,1450.0,1449.9,8.01352549]
[1673653604142,3.86137241,1450.0,1449.9,8.06352549]
[1673653604477,3.86137241,1450.0,1449.9,8.01352549]
[1673653604660,3.86137241,1450.0,1449.9,21.80756549]
[1673653605044,3.50224136,1450.0,1449.9,21.80756549]
[1673653605302,3.50224136,1450.0,1449.9,23.35218846]
[1673653606252,3.50224136,1450.0,1449.9,23.40218846]
[1673653606572,3.50224136,1450.0,1449.9,23.35218846]
[1673653607156,3.50224136,1450.0,1449.9,22.31964328]
[1673653607373,3.50224136,1450.0,1449.9,15.42262328]
[1673653607606,3.50224136,1450.0,1449.9,9.55692369]
[1673653607826,3.86137241,1450.0,1449.9,9.55692369]
[1673653608033,3.86137241,1450.0,1449.9,2.65990369]
[1673653608618,3.86137241,1450.0,1449.9,9.55692369]
[1673653610209,3.86137241,1450.0,1449.9,8.52560328]
[1673653610772,3.86137241,1450.0,1449.9,1.62858328]
[1673653612427,3.86137241,1450.0,1449.9,2.71082775]
[1673653612645,3.86137241,1450.0,1449.9,2.66082775]
[1673653613712,3.86137241,1450.0,1449.9,1.62858328]
[1673653614077,3.86137241,1450.0,1449.9,2.66082685]
[1673653614317,3.86137241,1450.0,1449.9,1.11620388]
[1673653614528,5.29037241,1450.0,1449.9,1.11620388]
[1673653614739,12.27599151,1450.0,1449.9,1.11620388]
[1673653614931,19.17254151,1450.0,1449.9,1.11620388]
[1673653615164,26.06909151,1450.0,1449.9,1.11620388]
[1673653615334,5.37944151,1450.0,1449.9,1.11620388]
[1673653616124,12.27599151,1450.0,1449.9,0.08396031]
[1673653616657,5.37944151,1450.0,1449.9,0.08396031]
[1673653617031,5.37944151,1450.0,1449.9,1.11620388]
[1673653620501,5.37944151,1450.0,1449.9,0.08396031]
[1673653620730,5.37944151,1450.0,1449.9,1.11620388]
[1673653621807,5.37944151,1450.0,1449.9,0.08396031]
[1673653622195,5.37944151,1450.0,1449.9,1.11620388]
[1673653622821,5.37944151,1450.0,1449.9,0.08396031]
[1673653623052,5.37944151,1450.0,1449.9,1.11620388]
[1673653623902,3.95044151,1450.0,1449.9,1.11620388]
[1673653624109,3.86137241,1450.0,1449.9,1.11620388]
[1673653624274,10.75792241,1450.0,1449.9,1.11620388]
[1673653624482,3.95044151,1450.0,1449.9,1.11620388]
[1673653624692,3.86137241,1450.0,1449.9,1.11620388]
[1673653625471,10.75792241,1450.0,1449.9,1.11620388]
[1673653625631,10.84699151,1450.0,1449.9,1.11620388]
[1673653625845,10.84699151,1450.0,1449.9,0.08396031]
[1673653626158,3.95044151,1450.0,1449.9,1.11620388]
[1673653626373,3.86137241,1450.0,1449.9,1.11620388]
[1673653627768,17.65447241,1450.0,1449.9,0.08396031]
[1673653627947,21.17254151,1450.0,1449.9,0.08396031]
[1673653628319,28.06909151,1450.0,1449.9,0.08396031]
[1673653628633,28.06620727,1450.0,1449.9,0.08396031]
[1673653628800,28.29620727,1450.0,1449.9,0.08396031]
[1673653629629,21.39965727,1450.0,1449.9,0.08396031]
[1673653629890,14.50310727,1450.0,1449.9,0.08396031]
[1673653630413,21.39965727,1450.0,1449.9,0.08396031]
[1673653630628,28.29620727,1450.0,1449.9,0.08396031]
[1673653630783,27.83732683,1450.0,1449.9,0.08396031]
[1673653630997,2.08299999,1449.9,1449.7,0.08736821]
[1673653631239,31.00229965,1449.8,1449.7,0.08736821]
[1673653631430,32.11752955,1449.8,1449.7,0.08736821]
[1673653631994,31.19364245,1449.8,1449.7,0.08736821]
[1673653632151,38.21106732,1449.8,1449.7,0.08736821]
[1673653632614,35.47364245,1449.8,1449.7,0.08736821]
[1673653633043,5.48547289,1449.8,1449.7,0.08736821]
[1673653633203,5.25547289,1449.8,1449.7,0.08736821]
[1673653637503,12.15297289,1449.8,1449.7,0.08736821]
[1673653639747,27.37697289,1449.8,1449.7,0.08736821]
[1673653639961,29.37697289,1449.8,1449.7,0.08736821]
[1673653640171,35.81464245,1449.8,1449.7,0.08736821]
[1673653640383,29.60697289,1449.8,1449.7,0.08736821]
[1673653642189,47.73864245,1449.8,1449.7,0.00036821]
[1673653642403,48.76480325,1449.8,1449.7,0.00036821]
[1673653642597,47.73864245,1449.8,1449.7,0.00036821]
[1673653642970,55.4246548,1449.8,1449.7,0.00036821]
[1673653644143,48.1596548,1449.8,1449.7,0.00036821]
[1673653644354,41.2621548,1449.8,1449.7,0.00036821]
[1673653645101,34.3646548,1449.8,1449.7,0.00036821]
[1673653645563,41.2621548,1449.8,1449.7,0.00036821]
[1673653645741,48.1596548,1449.8,1449.7,0.00036821]
[1673653645951,41.2621548,1449.8,1449.7,0.00036821]
[1673653646600,48.1596548,1449.8,1449.7,0.00036821]
[1673653647453,41.2621548,1449.8,1449.7,0.00036821]
[1673653647844,34.82448524,1449.8,1449.7,0.00036821]
[1673653648165,41.2621548,1449.8,1449.7,0.00036821]
[1673653648369,48.1596548,1449.8,1449.7,0.00036821]
[1673653650881,48.1596548,1449.8,1449.4,0.09270749]
[1673653651094,4.85883009,1449.5,1449.4,0.09270749]
[1673653651307,13.18476009,1449.5,1449.4,0.09270749]
[1673653651551,13.50382919,1449.5,1449.4,0.09270749]
[1673653651723,15.50382919,1449.5,1449.4,0.09270749]
[1673653651973,22.53800278,1449.5,1449.4,0.09270749]
[1673653652186,27.04788501,1449.5,1449.4,0.09270749]
[1673653652677,33.48555457,1449.5,1449.4,0.09270749]
[1673653652815,27.04788501,1449.5,1449.4,0.09270749]
[1673653653282,33.48555457,1449.5,1449.4,0.09270749]
[1673653653604,40.38448457,1449.5,1449.4,0.09270749]
[1673653653971,40.38448457,1449.5,1449.4,0.00070749]
[1673653654320,50.64948457,1449.5,1449.4,0.00070749]
[1673653654532,50.6662735,1449.5,1449.4,0.00070749]
[1673653659646,7.267,1449.3,1449.1,0.09984604]
[1673653659864,43.32589965,1449.2,1449.1,0.09984604]
[1673653660220,43.41496875,1449.2,1449.1,0.09984604]
[1673653660416,43.64496875,1449.2,1449.1,0.09984604]
[1673653660610,43.07596875,1449.2,1449.1,0.09984604]
[1673653660818,48.11026563,1449.2,1449.1,0.09984604]
[1673653661038,48.24326583,1449.2,1449.1,0.09984604]
[1673653661389,41.34291583,1449.2,1449.1,0.09984604]
[1673653661754,28.00489627,1449.2,1449.1,0.09984604]
[1673653661959,11.92019627,1449.2,1449.1,0.09984604]
[1673653662172,6.88589939,1449.2,1449.1,0.09984604]
[1673653663566,3.88589939,1449.2,1449.1,7.00067604]
[1673653663805,3.56683029,1449.2,1449.1,0.09984604]
[1673653664616,10.46718029,1449.2,1449.1,0.09984604]
[1673653664826,17.45659939,1449.2,1449.1,0.09984604]
[1673653665078,26.99429822,1449.2,1449.1,0.09984604]
[1673653665619,27.22429822,1449.2,1449.1,0.09984604]
[1673653667286,6.52324822,1449.2,1449.1,0.09984604]
[1673653667483,13.42359822,1449.2,1449.1,0.09984604]
[1673653667710,20.32394822,1449.2,1449.1,0.09984604]
[1673653668144,27.22429822,1449.2,1449.1,0.09984604]
[1673653668618,29.22429822,1449.2,1449.1,0.04984604]
[1673653668830,27.22429822,1449.2,1449.1,0.04984604]
[1673653669671,33.66196778,1449.2,1449.1,0.04984604]
[1673653670132,36.66196778,1449.2,1449.1,0.04984604]
[1673653671071,36.66196778,1449.2,1449.0,0.11075104]
[1673653671072,8.90083,1449.1,1449.0,0.11075104]
[1673653671302,23.22075597,1449.1,1449.0,0.11075104]
[1673653671613,16.31992597,1449.1,1449.0,0.11075104]
[1673653671834,9.41909597,1449.1,1449.0,0.11075104]
[1673653672056,16.45217817,1449.1,1449.0,0.11075104]
[1673653672190,23.35300817,1449.1,1449.0,0.11075104]
[1673653672402,16.45217817,1449.1,1449.0,0.11075104]
[1673653673297,9.55134817,1449.1,1449.0,0.11075104]
[1673653674301,16.4689671,1449.1,1449.0,0.11075104]
[1673653675346,7.5681371,1449.1,1449.0,0.11075104]
[1673653675609,14.4689671,1449.1,1449.0,0.11075104]
[1673653675979,21.3697971,1449.1,1449.0,0.11075104]
[1673653676232,28.2706271,1449.1,1449.0,0.11075104]
[1673653676766,34.70829666,1449.1,1449.0,0.11075104]
[1673653677127,37.70829666,1449.1,1449.0,0.00075104]
[1673653683116,31.2706271,1449.1,1449.0,0.00075104]
[1673653683588,37.70829666,1449.1,1449.0,0.00075104]
[1673653683804,31.2706271,1449.1,1449.0,0.00075104]
[1673653684695,31.2706271,1449.1,1448.9,0.08931796]
[1673653684696,15.80262,1449.0,1448.9,0.08931796]
[1673653684957,22.6825819,1449.0,1448.9,0.08931796]
[1673653685126,29.5838919,1449.0,1448.9,0.08931796]
[1673653685869,29.71539599,1449.0,1448.9,0.08931796]
[1673653686427,29.71539599,1449.0,1448.9,0.03931796]
[1673653687686,43.41806555,1449.0,1448.9,0.03931796]
[1673653687901,36.15306555,1449.0,1448.9,0.03931796]
[1673653688068,9.01146599,1449.0,1448.9,0.03931796]
[1673653690523,15.91277599,1449.0,1448.9,0.03931796]
[1673653690733,9.01146599,1449.0,1448.9,0.03931796]
[1673653691052,7.01146599,1449.0,1448.9,0.03931796]
[1673653691212,3.88440328,1449.0,1448.9,0.03931796]
[1673653691418,3.88440328,1449.0,1448.8,1.07551538]
[1673653691419,3.79533418,1449.0,1448.8,1.07551538]
[1673653691671,3.66383009,1448.9,1448.8,0.04327181]
[1673653691895,3.66383009,1448.9,1448.8,1.07551538]
[1673653692062,4.26636351,1448.9,1448.8,1.07551538]
[1673653692488,3.43383009,1448.9,1448.8,1.07551538]
[1673653692814,24.13917009,1448.9,1448.8,0.04327181]
[1673653693006,24.58899507,1448.9,1448.8,0.04327181]
[1673653694262,24.605784,1448.9,1448.8,0.04327181]
[1673653695671,26.605784,1448.9,1448.8,0.04327181]
[1673653695887,30.8829974,1448.9,1448.8,0.04327181]
[1673653696203,30.8829974,1448.9,1448.5,2.75692938]
[1673653696204,3.43383009,1448.6,1448.5,2.75692938]
[1673653696362,1.02756499,1448.4,1448.3,0.09890679]
[1673653696570,4.46139508,1448.4,1448.3,1.64895595]
[1673653696832,4.46139508,1448.4,1448.3,8.55359595]
[1673653697000,4.46139508,1448.4,1448.3,1.64895595]
[1673653698205,5.09855724,1448.4,1448.3,1.64895595]
[1673653698355,5.18762634,1448.4,1448.3,0.09890679]
[1673653698784,5.18762634,1448.4,1448.3,1.64895595]